[Event "Titled Tuesday Blitz May 17 Late 2022"]
[White "Ohanyan, Emin"]
[Black "Tologon tegin, Semetei"]
[WhiteFideId "13312022"]
[BlackFideId "13800574"]
[WhiteElo "1927"]
[BlackElo "2258"]
[Result "1-0"]
[Round "09"]
[TimeControl "180+1"]
[Date "2022.05.17"]
[WhiteClock "0:00:09"]
[BlackClock "0:00:20"]

1. e4 {[%clk 0:02:57]}  e5 {[%clk 0:02:56]} 2. Nc3 {[%clk 0:02:56]}  Nc6 {[%clk 0:02:54]} 3. Bc4 {[%clk 0:02:56]}  Nf6 {[%clk 0:02:53]} 4. d3 {[%clk 0:02:56]}  Na5 {[%clk 0:02:53]} 5. Bb3 {[%clk 0:02:55]}  Nxb3 {[%clk 0:02:53]} 6. axb3 {[%clk 0:02:56]}  Bc5 {[%clk 0:02:52]} 7. f4 {[%clk 0:02:55]}  d6 {[%clk 0:02:49]} 8. Nf3 {[%clk 0:02:55]}  a6 {[%clk 0:02:48]} 9. Qe2 {[%clk 0:02:53]}  O-O {[%clk 0:02:26]} 10. fxe5 {[%clk 0:02:50]}  dxe5 {[%clk 0:02:27]} 11. Nxe5 {[%clk 0:02:51]}  Re8 {[%clk 0:02:20]} 12. Nf3 {[%clk 0:02:47]}  Bg4 {[%clk 0:01:30]} 13. Be3 {[%clk 0:02:42]}  Bxf3 {[%clk 0:01:16]} 14. Qxf3 {[%clk 0:02:41]}  Bxe3 {[%clk 0:01:12]} 15. Qxe3 {[%clk 0:02:42]}  Ng4 {[%clk 0:01:11]} 16. Qg3 {[%clk 0:02:35]}  f5 {[%clk 0:01:03]} 17. O-O {[%clk 0:02:08]}  Qd4+ {[%clk 0:01:02]} 18. Kh1 {[%clk 0:02:08]}  Ne3 {[%clk 0:01:01]} 19. Rf2 {[%clk 0:02:07]}  fxe4 {[%clk 0:00:55]} 20. Nxe4 {[%clk 0:02:03]}  Qxb2 {[%clk 0:00:48]} 21. Rg1 {[%clk 0:01:42]}  Nd5 {[%clk 0:00:43]} 22. c4 {[%clk 0:01:40]}  Qd4 {[%clk 0:00:31]} 23. cxd5 {[%clk 0:01:39]}  Kh8 {[%clk 0:00:31]} 24. Rf7 {[%clk 0:01:38]}  Rg8 {[%clk 0:00:29]} 25. Rxc7 {[%clk 0:01:32]}  Qxd5 {[%clk 0:00:29]} 26. h3 {[%clk 0:01:30]}  Qxb3 {[%clk 0:00:28]} 27. Nd6 {[%clk 0:01:29]}  Raf8 {[%clk 0:00:25]} 28. Rxb7 {[%clk 0:01:26]}  Qd5 {[%clk 0:00:25]} 29. d4 {[%clk 0:01:20]}  Rf6 {[%clk 0:00:24]} 30. Rb6 {[%clk 0:00:30]}  Rd8 {[%clk 0:00:24]} 31. Rb7 {[%clk 0:00:30]}  Rg6 {[%clk 0:00:23]} 32. Qe5 {[%clk 0:00:24]}  Qxd6 {[%clk 0:00:22]} 33. Re1 {[%clk 0:00:16]}  Qc6 {[%clk 0:00:19]} 34. Rb2 {[%clk 0:00:15]}  h6 {[%clk 0:00:18]} 35. Kh2 {[%clk 0:00:11]}  Rg5 {[%clk 0:00:18]} 36. Qf4 {[%clk 0:00:11]}  Qd5 {[%clk 0:00:17]} 37. Rd2 {[%clk 0:00:11]}  Kh7 {[%clk 0:00:16]} 38. Rc1 {[%clk 0:00:08]}  Rd6 {[%clk 0:00:16]} 39. Rc5 {[%clk 0:00:06]}  Qe6 {[%clk 0:00:15]} 40. Rxg5 {[%clk 0:00:06]}  hxg5 {[%clk 0:00:15]} 41. Qxg5 {[%clk 0:00:06]}  Rd5 {[%clk 0:00:15]} 42. Qh4+ {[%clk 0:00:07]}  Kg8 {[%clk 0:00:15]} 43. Rc2 {[%clk 0:00:06]}  Qd6+ {[%clk 0:00:15]} 44. Kh1 {[%clk 0:00:04]}  Rxd4 {[%clk 0:00:15]} 45. Rc8+ {[%clk 0:00:03]}  Kf7 {[%clk 0:00:16]} 46. Qf2+ {[%clk 0:00:04]}  Kg6 {[%clk 0:00:15]} 47. Qc2+ {[%clk 0:00:02]}  Kf6 {[%clk 0:00:14]} 48. Qf2+ {[%clk 0:00:02]}  Kg6 {[%clk 0:00:14]} 49. Qc2+ {[%clk 0:00:02]}  Kf6 {[%clk 0:00:14]} 50. Qb2 {[%clk 0:00:03]}  Qe5 {[%clk 0:00:13]} 51. Rc6+ {[%clk 0:00:02]}  Kf7 {[%clk 0:00:12]} 52. Qa2+ {[%clk 0:00:02]}  Ke7 {[%clk 0:00:12]} 53. Rc1 {[%clk 0:00:01]}  Qd5 {[%clk 0:00:12]} 54. Qa3+ {[%clk 0:00:02]}  Qd6 {[%clk 0:00:11]} 55. Qe3+ {[%clk 0:00:02]}  Kd7 {[%clk 0:00:11]} 56. Qf3 {[%clk 0:00:03]}  Rd3 {[%clk 0:00:11]} 57. Qb7+ {[%clk 0:00:03]}  Ke8 {[%clk 0:00:10]} 58. Rc8+ {[%clk 0:00:03]}  Qd8 {[%clk 0:00:10]} 59. Rxd8+ {[%clk 0:00:03]}  Rxd8 {[%clk 0:00:11]} 60. Qxa6 {[%clk 0:00:03]}  Kf7 {[%clk 0:00:11]} 61. Qb7+ {[%clk 0:00:03]}  Kg8 {[%clk 0:00:11]} 62. Qf3 {[%clk 0:00:04]}  Rf8 {[%clk 0:00:11]} 63. Qg3 {[%clk 0:00:05]}  Rf6 {[%clk 0:00:12]} 64. Kh2 {[%clk 0:00:06]}  Kf7 {[%clk 0:00:12]} 65. Qe5 {[%clk 0:00:06]}  Rg6 {[%clk 0:00:13]} 66. Qd5+ {[%clk 0:00:06]}  Re6 {[%clk 0:00:14]} 67. g4 {[%clk 0:00:06]}  Ke7 {[%clk 0:00:15]} 68. Kg3 {[%clk 0:00:06]}  Rd6 {[%clk 0:00:15]} 69. Qe5+ {[%clk 0:00:06]}  Re6 {[%clk 0:00:15]} 70. Qxg7+ {[%clk 0:00:07]}  Kd6 {[%clk 0:00:16]} 71. Qf7 {[%clk 0:00:07]}  Re7 {[%clk 0:00:16]} 72. Qxe7+ {[%clk 0:00:07]}  Kxe7 {[%clk 0:00:17]} 73. Kf4 {[%clk 0:00:08]}  Kf6 {[%clk 0:00:17]} 74. h4 {[%clk 0:00:09]}  Kg6 {[%clk 0:00:18]} 75. h5+ {[%clk 0:00:09]}  Kh6 {[%clk 0:00:19]} 76. Kf5 {[%clk 0:00:09]}  Kh7 {[%clk 0:00:19]} 77. g5 {[%clk 0:00:10]}  Kh8 {[%clk 0:00:18]} 78. Kg6 {[%clk 0:00:10]}  Kg8 {[%clk 0:00:19]} 79. Kh6 {[%clk 0:00:08]}  Kh8 {[%clk 0:00:19]} 80. g6 {[%clk 0:00:08]}  Kg8 {[%clk 0:00:20]} 81. g7 {[%clk 0:00:09]}  Kf7 {[%clk 0:00:20]} 82. Kh7 {[%clk 0:00:09]} 1-0


[Site "https://www.chess.com"]

[Event "Titled Tuesday Blitz May 17 Late 2022"]
[White "Romanchuk, Viktor"]
[Black "Rychagov, Andrey"]
[WhiteFideId "14109271"]
[BlackFideId "4119932"]
[WhiteElo "2242"]
[BlackElo "2500"]
[Result "0-1"]
[Round "09"]
[TimeControl "180+1"]
[Date "2022.05.17"]
[WhiteClock "0:00:16"]
[BlackClock "0:01:21"]

1. d4 {[%clk 0:03:00]}  f5 {[%clk 0:02:55]} 2. Nc3 {[%clk 0:02:59]}  Nf6 {[%clk 0:02:54]} 3. Bg5 {[%clk 0:02:59]}  d5 {[%clk 0:02:55]} 4. f3 {[%clk 0:02:58]}  Nc6 {[%clk 0:02:46]} 5. Qd2 {[%clk 0:02:57]}  g6 {[%clk 0:02:43]} 6. O-O-O {[%clk 0:02:55]}  Bg7 {[%clk 0:02:43]} 7. e4 {[%clk 0:02:55]}  fxe4 {[%clk 0:02:40]} 8. fxe4 {[%clk 0:02:54]}  Nxe4 {[%clk 0:02:40]} 9. Nxe4 {[%clk 0:02:53]}  dxe4 {[%clk 0:02:40]} 10. Bb5 {[%clk 0:02:24]}  O-O {[%clk 0:02:22]} 11. Ne2 {[%clk 0:02:07]}  Bf5 {[%clk 0:02:01]} 12. h3 {[%clk 0:01:55]}  Qd6 {[%clk 0:01:51]} 13. g4 {[%clk 0:01:39]}  Bd7 {[%clk 0:01:50]} 14. c3 {[%clk 0:01:30]}  Na5 {[%clk 0:01:41]} 15. Bxd7 {[%clk 0:01:18]}  Qxd7 {[%clk 0:01:41]} 16. Qe3 {[%clk 0:01:12]}  Qd5 {[%clk 0:01:37]} 17. b3 {[%clk 0:01:01]}  Rf3 {[%clk 0:01:35]} 18. Qd2 {[%clk 0:00:46]}  Rd3 {[%clk 0:01:34]} 19. Qf4 {[%clk 0:00:46]}  Rf8 {[%clk 0:01:34]} 20. Bxe7 {[%clk 0:00:19]}  Nxb3+ {[%clk 0:01:24]} 21. axb3 {[%clk 0:00:17]}  Rxf4 {[%clk 0:01:24]} 22. Nxf4 {[%clk 0:00:16]}  Rxc3+ {[%clk 0:01:25]} 23. Kd2 {[%clk 0:00:16]}  Qxd4+ {[%clk 0:01:21]} 0-1


[Site "https://www.chess.com"]

[Event "Titled Tuesday Blitz May 17 Late 2022"]
[White "Ronka, Erik"]
[Black "Fishbein, Alexander"]
[WhiteFideId "505080"]
[BlackFideId "2000377"]
[WhiteElo "2264"]
[BlackElo "2442"]
[Result "0-1"]
[Round "09"]
[TimeControl "180+1"]
[Date "2022.05.17"]
[WhiteClock "0:00:08"]
[BlackClock "0:00:56"]

1. e4 {[%clk 0:03:00]}  c5 {[%clk 0:02:58]} 2. Nf3 {[%clk 0:03:01]}  d6 {[%clk 0:02:57]} 3. d4 {[%clk 0:02:56]}  cxd4 {[%clk 0:02:57]} 4. Nxd4 {[%clk 0:02:57]}  Nf6 {[%clk 0:02:57]} 5. Nc3 {[%clk 0:02:57]}  Nc6 {[%clk 0:02:57]} 6. Bg5 {[%clk 0:02:56]}  e6 {[%clk 0:02:57]} 7. Qd2 {[%clk 0:02:56]}  Be7 {[%clk 0:02:57]} 8. O-O-O {[%clk 0:02:55]}  O-O {[%clk 0:02:58]} 9. f4 {[%clk 0:02:55]}  h6 {[%clk 0:02:57]} 10. h4 {[%clk 0:02:51]}  Qb6 {[%clk 0:02:53]} 11. Nxc6 {[%clk 0:02:44]}  bxc6 {[%clk 0:02:52]} 12. e5 {[%clk 0:02:42]}  dxe5 {[%clk 0:02:52]} 13. fxe5 {[%clk 0:02:42]}  hxg5 {[%clk 0:02:51]} 14. exf6 {[%clk 0:02:20]}  Bxf6 {[%clk 0:02:49]} 15. hxg5 {[%clk 0:02:17]}  Rb8 {[%clk 0:02:47]} 16. b3 {[%clk 0:02:07]}  Be5 {[%clk 0:02:46]} 17. Bd3 {[%clk 0:01:59]}  g6 {[%clk 0:02:45]} 18. Ne4 {[%clk 0:01:57]}  Qb4 {[%clk 0:02:30]} 19. c3 {[%clk 0:01:18]}  Qa3+ {[%clk 0:02:28]} 20. Kb1 {[%clk 0:01:18]}  Rd8 {[%clk 0:01:55]} 21. Nf6+ {[%clk 0:01:09]}  Kf8 {[%clk 0:01:34]} 22. Rh8+ {[%clk 0:01:00]}  Ke7 {[%clk 0:01:34]} 23. Rxd8 {[%clk 0:00:56]}  Rxb3+ {[%clk 0:01:26]} 24. axb3 {[%clk 0:00:54]}  Qxb3+ {[%clk 0:01:26]} 25. Qb2 {[%clk 0:00:46]}  Qxd1+ {[%clk 0:01:25]} 26. Ka2 {[%clk 0:00:43]}  Qa4+ {[%clk 0:01:23]} 27. Kb1 {[%clk 0:00:15]}  Kxd8 {[%clk 0:01:22]} 28. Bc2 {[%clk 0:00:16]}  Qb5 {[%clk 0:01:17]} 29. Bb3 {[%clk 0:00:13]}  Kc7 {[%clk 0:01:11]} 30. Ne8+ {[%clk 0:00:10]}  Kb8 {[%clk 0:01:09]} 31. Ka2 {[%clk 0:00:08]}  Qa5+ {[%clk 0:00:56]} 0-1


[Site "https://www.chess.com"]

[Event "Titled Tuesday Blitz May 17 Late 2022"]
[White "Rustemov, Alexander"]
[Black "De La Colina, Nicolas"]
[WhiteFideId "4119002"]
[BlackFideId "30946921"]
[WhiteElo "2798"]
[BlackElo "2046"]
[Result "1-0"]
[Round "09"]
[TimeControl "180+1"]
[Date "2022.05.17"]
[WhiteClock "0:01:40"]
[BlackClock "0:00:02"]

1. d4 {[%clk 0:03:00]}  Nf6 {[%clk 0:02:57]} 2. c4 {[%clk 0:03:01]}  g6 {[%clk 0:02:57]} 3. Nf3 {[%clk 0:03:01]}  Bg7 {[%clk 0:02:58]} 4. g3 {[%clk 0:03:02]}  d6 {[%clk 0:02:58]} 5. Bg2 {[%clk 0:03:02]}  O-O {[%clk 0:02:59]} 6. Nc3 {[%clk 0:03:03]}  Nc6 {[%clk 0:02:59]} 7. O-O {[%clk 0:03:03]}  e5 {[%clk 0:02:58]} 8. h3 {[%clk 0:03:01]}  h6 {[%clk 0:02:49]} 9. Be3 {[%clk 0:03:00]}  Re8 {[%clk 0:02:43]} 10. dxe5 {[%clk 0:02:59]}  Nxe5 {[%clk 0:02:44]} 11. Nxe5 {[%clk 0:02:59]}  Rxe5 {[%clk 0:02:29]} 12. Qd2 {[%clk 0:02:58]}  Kh7 {[%clk 0:02:26]} 13. Rfd1 {[%clk 0:02:54]}  a6 {[%clk 0:01:37]} 14. c5 {[%clk 0:02:43]}  Ne8 {[%clk 0:01:32]} 15. Bd4 {[%clk 0:02:39]}  Re6 {[%clk 0:01:23]} 16. Bxg7 {[%clk 0:02:38]}  Kxg7 {[%clk 0:01:15]} 17. Nd5 {[%clk 0:02:32]}  dxc5 {[%clk 0:01:01]} 18. Qc3+ {[%clk 0:02:31]}  Nf6 {[%clk 0:00:32]} 19. Nb6 {[%clk 0:02:29]}  Qxd1+ {[%clk 0:00:25]} 20. Rxd1 {[%clk 0:02:29]}  cxb6 {[%clk 0:00:19]} 21. Rd8 {[%clk 0:02:28]}  a5 {[%clk 0:00:18]} 22. g4 {[%clk 0:02:27]}  Kh7 {[%clk 0:00:14]} 23. f4 {[%clk 0:02:21]}  Ng8 {[%clk 0:00:02]} 24. e4 {[%clk 0:02:06]}  Re7 {[%clk 0:00:02]} 25. f5 {[%clk 0:02:02]}  a4 {[%clk 0:00:02]} 26. e5 {[%clk 0:01:59]}  a3 {[%clk 0:00:02]} 27. bxa3 {[%clk 0:01:58]}  gxf5 {[%clk 0:00:03]} 28. gxf5 {[%clk 0:01:58]}  Rc7 {[%clk 0:00:02]} 29. e6 {[%clk 0:01:55]}  fxe6 {[%clk 0:00:02]} 30. fxe6 {[%clk 0:01:55]}  Rg7 {[%clk 0:00:02]} 31. Qe5 {[%clk 0:01:45]}  Kh8 {[%clk 0:00:02]} 32. e7 {[%clk 0:01:43]}  Ra4 {[%clk 0:00:01]} 33. Rxg8+ {[%clk 0:01:40]}  Kxg8 {[%clk 0:00:01]} 34. e8=Q+ {[%clk 0:01:40]}  Kh7 {[%clk 0:00:02]} 1-0


[Site "https://www.chess.com"]

[Event "Titled Tuesday Blitz May 17 Late 2022"]
[White "Steinberg, Nitzan"]
[Black "Moroni, Luca Jr"]
[WhiteFideId "2801795"]
[BlackFideId "865834"]
[WhiteElo "2471"]
[BlackElo "2573"]
[Result "0-1"]
[Round "09"]
[TimeControl "180+1"]
[Date "2022.05.17"]
[WhiteClock "0:00:04"]
[BlackClock "0:00:07"]

1. e4 {[%clk 0:03:00]}  d6 {[%clk 0:03:00]} 2. d4 {[%clk 0:03:00]}  e5 {[%clk 0:03:01]} 3. Nc3 {[%clk 0:03:01]}  exd4 {[%clk 0:02:59]} 4. Qxd4 {[%clk 0:03:01]}  Nc6 {[%clk 0:03:00]} 5. Qd2 {[%clk 0:03:00]}  g6 {[%clk 0:02:56]} 6. b3 {[%clk 0:03:01]}  Bg7 {[%clk 0:02:55]} 7. Bb2 {[%clk 0:03:01]}  Nf6 {[%clk 0:02:55]} 8. O-O-O {[%clk 0:03:00]}  O-O {[%clk 0:02:55]} 9. f3 {[%clk 0:03:00]}  a5 {[%clk 0:02:41]} 10. a4 {[%clk 0:03:00]}  Nb4 {[%clk 0:02:41]} 11. Kb1 {[%clk 0:03:00]}  Be6 {[%clk 0:02:41]} 12. h4 {[%clk 0:03:00]}  d5 {[%clk 0:02:28]} 13. e5 {[%clk 0:02:56]}  Nd7 {[%clk 0:02:24]} 14. f4 {[%clk 0:02:55]}  Bf5 {[%clk 0:02:20]} 15. Rc1 {[%clk 0:02:51]}  Nc5 {[%clk 0:02:20]} 16. Qd1 {[%clk 0:02:15]}  d4 {[%clk 0:02:08]} 17. Nb5 {[%clk 0:02:08]}  d3 {[%clk 0:02:06]} 18. cxd3 {[%clk 0:02:00]}  Ncxd3 {[%clk 0:02:04]} 19. Bxd3 {[%clk 0:01:52]}  Nxd3 {[%clk 0:02:05]} 20. Ka1 {[%clk 0:01:28]}  Nxc1 {[%clk 0:01:33]} 21. Qxc1 {[%clk 0:01:28]}  Qd3 {[%clk 0:01:30]} 22. Ka2 {[%clk 0:01:26]}  c6 {[%clk 0:01:25]} 23. Nd4 {[%clk 0:01:24]}  b5 {[%clk 0:01:24]} 24. Ngf3 {[%clk 0:01:05]}  bxa4 {[%clk 0:01:22]} 25. bxa4 {[%clk 0:01:05]}  Rab8 {[%clk 0:01:17]} 26. Rd1 {[%clk 0:01:00]}  Be6+ {[%clk 0:00:58]} 27. Ka1 {[%clk 0:00:56]}  Qc4 {[%clk 0:00:43]} 28. Qxc4 {[%clk 0:00:54]}  Bxc4 {[%clk 0:00:44]} 29. Nxc6 {[%clk 0:00:53]}  Rb6 {[%clk 0:00:43]} 30. Ne7+ {[%clk 0:00:44]}  Kh8 {[%clk 0:00:42]} 31. f5 {[%clk 0:00:38]}  Rfb8 {[%clk 0:00:39]} 32. Rd2 {[%clk 0:00:30]}  Rb4 {[%clk 0:00:32]} 33. Nc6 {[%clk 0:00:22]}  Rxa4+ {[%clk 0:00:32]} 34. Kb1 {[%clk 0:00:23]}  Rc8 {[%clk 0:00:30]} 35. Rd6 {[%clk 0:00:17]}  gxf5 {[%clk 0:00:24]} 36. Nfd4 {[%clk 0:00:17]}  Ba2+ {[%clk 0:00:21]} 37. Kc1 {[%clk 0:00:15]}  Bxe5 {[%clk 0:00:19]} 38. Nxf5 {[%clk 0:00:13]}  Bxb2+ {[%clk 0:00:18]} 39. Kxb2 {[%clk 0:00:13]}  Be6 {[%clk 0:00:18]} 40. Nfd4 {[%clk 0:00:10]}  Rc4 {[%clk 0:00:18]} 41. h5 {[%clk 0:00:09]}  h6 {[%clk 0:00:18]} 42. g3 {[%clk 0:00:06]}  Kh7 {[%clk 0:00:16]} 43. Nxa5 {[%clk 0:00:04]}  Rb4+ {[%clk 0:00:15]} 44. Ka3 {[%clk 0:00:03]}  Rb1 {[%clk 0:00:14]} 45. Nxe6 {[%clk 0:00:04]}  Rcb8 {[%clk 0:00:07]} 0-1


[Site "https://www.chess.com"]

[Event "Titled Tuesday Blitz May 17 Late 2022"]
[White "Suleymanli, Aydin"]
[Black "Riehle, Marco"]
[WhiteFideId "13413937"]
[BlackFideId "12904392"]
[WhiteElo "2481"]
[BlackElo "2462"]
[Result "0-1"]
[Round "09"]
[TimeControl "180+1"]
[Date "2022.05.17"]
[WhiteClock "0:00:03"]
[BlackClock "0:00:06"]

1. d4 {[%clk 0:03:00]}  d5 {[%clk 0:02:59]} 2. c4 {[%clk 0:03:00]}  e6 {[%clk 0:03:00]} 3. Nc3 {[%clk 0:03:00]}  c5 {[%clk 0:03:00]} 4. cxd5 {[%clk 0:02:58]}  cxd4 {[%clk 0:03:00]} 5. Qa4+ {[%clk 0:02:50]}  Bd7 {[%clk 0:02:59]} 6. Qxd4 {[%clk 0:02:50]}  exd5 {[%clk 0:03:00]} 7. Nf3 {[%clk 0:02:45]}  Nc6 {[%clk 0:02:59]} 8. Qxd5 {[%clk 0:02:45]}  Nf6 {[%clk 0:03:00]} 9. Qd1 {[%clk 0:02:43]}  Bc5 {[%clk 0:02:58]} 10. e3 {[%clk 0:02:42]}  Qe7 {[%clk 0:02:58]} 11. a3 {[%clk 0:02:41]}  O-O {[%clk 0:02:56]} 12. Be2 {[%clk 0:02:41]}  Rfd8 {[%clk 0:02:51]} 13. Qc2 {[%clk 0:02:41]}  Rac8 {[%clk 0:02:51]} 14. O-O {[%clk 0:02:40]}  Ne5 {[%clk 0:02:46]} 15. Rd1 {[%clk 0:02:30]}  Bg4 {[%clk 0:02:42]} 16. Nd4 {[%clk 0:02:26]}  h6 {[%clk 0:02:13]} 17. h3 {[%clk 0:02:10]}  Bxe2 {[%clk 0:02:13]} 18. Qxe2 {[%clk 0:02:10]}  a6 {[%clk 0:02:13]} 19. Nb3 {[%clk 0:02:04]}  Bb6 {[%clk 0:02:06]} 20. Bd2 {[%clk 0:02:03]}  Ng6 {[%clk 0:01:51]} 21. Be1 {[%clk 0:01:58]}  Qe5 {[%clk 0:01:50]} 22. Rac1 {[%clk 0:01:47]}  Rxd1 {[%clk 0:01:41]} 23. Rxd1 {[%clk 0:01:46]}  Bc7 {[%clk 0:01:40]} 24. f4 {[%clk 0:01:46]}  Qe7 {[%clk 0:01:33]} 25. Bf2 {[%clk 0:01:40]}  Bb6 {[%clk 0:01:33]} 26. Qf3 {[%clk 0:01:36]}  Re8 {[%clk 0:01:29]} 27. Nd4 {[%clk 0:01:33]}  Qc7 {[%clk 0:01:21]} 28. Nf5 {[%clk 0:01:32]}  Ne7 {[%clk 0:01:17]} 29. Ng3 {[%clk 0:01:15]}  Ng6 {[%clk 0:01:09]} 30. Nge2 {[%clk 0:01:04]}  Qc4 {[%clk 0:01:03]} 31. g4 {[%clk 0:00:57]}  Ne4 {[%clk 0:00:47]} 32. Nxe4 {[%clk 0:00:52]}  Rxe4 {[%clk 0:00:48]} 33. Nc3 {[%clk 0:00:52]}  Re8 {[%clk 0:00:41]} 34. Qd5 {[%clk 0:00:52]}  Qc7 {[%clk 0:00:38]} 35. Rd3 {[%clk 0:00:38]}  Qe7 {[%clk 0:00:29]} 36. Kg2 {[%clk 0:00:35]}  Nh4+ {[%clk 0:00:25]} 37. Kh2 {[%clk 0:00:27]}  Ng6 {[%clk 0:00:23]} 38. Qf3 {[%clk 0:00:19]}  Nh4 {[%clk 0:00:21]} 39. Qh1 {[%clk 0:00:19]}  Ng6 {[%clk 0:00:20]} 40. Nd5 {[%clk 0:00:18]}  Qd6 {[%clk 0:00:18]} 41. Bg3 {[%clk 0:00:18]}  Qc6 {[%clk 0:00:16]} 42. Qg2 {[%clk 0:00:14]}  Bc5 {[%clk 0:00:14]} 43. e4 {[%clk 0:00:14]}  Ne7 {[%clk 0:00:12]} 44. e5 {[%clk 0:00:14]}  Nxd5 {[%clk 0:00:12]} 45. Qxd5 {[%clk 0:00:15]}  Qb6 {[%clk 0:00:12]} 46. b4 {[%clk 0:00:15]}  Bf2 {[%clk 0:00:12]} 47. Qf3 {[%clk 0:00:06]}  Bxg3+ {[%clk 0:00:12]} 48. Kxg3 {[%clk 0:00:06]}  Rc8 {[%clk 0:00:11]} 49. Qf2 {[%clk 0:00:06]}  Qb5 {[%clk 0:00:09]} 50. Qd2 {[%clk 0:00:06]}  Kh7 {[%clk 0:00:08]} 51. Rd8 {[%clk 0:00:05]}  Rc4 {[%clk 0:00:08]} 52. Qd3+ {[%clk 0:00:05]}  g6 {[%clk 0:00:08]} 53. e6 {[%clk 0:00:06]}  fxe6 {[%clk 0:00:06]} 54. Rd7+ {[%clk 0:00:06]}  Kh8 {[%clk 0:00:07]} 55. Re7 {[%clk 0:00:06]}  Rc8 {[%clk 0:00:05]} 56. Qxg6 {[%clk 0:00:06]}  Rc3+ {[%clk 0:00:04]} 57. Kf2 {[%clk 0:00:04]}  Qb6+ {[%clk 0:00:04]} 58. Kg2 {[%clk 0:00:04]}  Qc6+ {[%clk 0:00:04]} 59. Kf2 {[%clk 0:00:04]}  Qf3+ {[%clk 0:00:04]} 60. Ke1 {[%clk 0:00:02]}  Qe3+ {[%clk 0:00:04]} 61. Kf1 {[%clk 0:00:02]}  Rc1+ {[%clk 0:00:05]} 62. Kg2 {[%clk 0:00:03]}  Rg1+ {[%clk 0:00:06]} 0-1


[Site "https://www.chess.com"]

[Event "Titled Tuesday Blitz May 17 Late 2022"]
[White "Wagner, Dennis"]
[Black "Omariev, Maksim"]
[WhiteFideId "24650684"]
[BlackFideId "4193423"]
[WhiteElo "2355"]
[BlackElo "2523"]
[Result "1-0"]
[Round "09"]
[TimeControl "180+1"]
[Date "2022.05.17"]
[WhiteClock "0:01:08"]
[BlackClock "0:00:01"]

1. e4 {[%clk 0:03:00]}  c5 {[%clk 0:03:00]} 2. Nf3 {[%clk 0:03:01]}  d6 {[%clk 0:03:00]} 3. Bc4 {[%clk 0:02:57]}  Nf6 {[%clk 0:02:50]} 4. Nc3 {[%clk 0:02:54]}  a6 {[%clk 0:02:44]} 5. d4 {[%clk 0:02:44]}  cxd4 {[%clk 0:02:38]} 6. Nxd4 {[%clk 0:02:45]}  e6 {[%clk 0:02:36]} 7. O-O {[%clk 0:02:42]}  b5 {[%clk 0:02:33]} 8. Bb3 {[%clk 0:02:42]}  Be7 {[%clk 0:02:33]} 9. Qf3 {[%clk 0:02:41]}  Qc7 {[%clk 0:02:05]} 10. Qg3 {[%clk 0:02:30]}  O-O {[%clk 0:02:00]} 11. Bh6 {[%clk 0:02:31]}  Ne8 {[%clk 0:01:54]} 12. Rfe1 {[%clk 0:02:20]}  Kh8 {[%clk 0:01:25]} 13. Be3 {[%clk 0:02:19]}  Nf6 {[%clk 0:01:22]} 14. a3 {[%clk 0:02:19]}  Rg8 {[%clk 0:01:07]} 15. Rad1 {[%clk 0:02:09]}  Bb7 {[%clk 0:01:04]} 16. f3 {[%clk 0:02:00]}  Nbd7 {[%clk 0:01:04]} 17. Ndxb5 {[%clk 0:01:36]}  axb5 {[%clk 0:01:02]} 18. Nxb5 {[%clk 0:01:37]}  Qa5 {[%clk 0:00:51]} 19. Nxd6 {[%clk 0:01:36]}  Bxd6 {[%clk 0:00:47]} 20. Qxd6 {[%clk 0:01:35]}  Rgd8 {[%clk 0:00:11]} 21. Qe7 {[%clk 0:01:35]}  Kg8 {[%clk 0:00:08]} 22. Kh1 {[%clk 0:01:27]}  Nf8 {[%clk 0:00:08]} 23. Qxb7 {[%clk 0:01:23]}  Rab8 {[%clk 0:00:04]} 24. Qc6 {[%clk 0:01:18]}  Rbc8 {[%clk 0:00:03]} 25. Qb6 {[%clk 0:01:18]}  Rxd1 {[%clk 0:00:02]} 26. Rxd1 {[%clk 0:01:17]}  Qxb6 {[%clk 0:00:01]} 27. Bxb6 {[%clk 0:01:17]}  Ng6 {[%clk 0:00:02]} 28. Rd8+ {[%clk 0:01:17]}  Rxd8 {[%clk 0:00:01]} 29. Bxd8 {[%clk 0:01:18]}  Ne5 {[%clk 0:00:01]} 30. a4 {[%clk 0:01:14]}  Nc6 {[%clk 0:00:02]} 31. Bb6 {[%clk 0:01:12]}  Nd7 {[%clk 0:00:02]} 32. a5 {[%clk 0:01:12]}  Nb4 {[%clk 0:00:02]} 33. Ba4 {[%clk 0:01:10]}  Nb8 {[%clk 0:00:01]} 34. c3 {[%clk 0:01:08]}  N4a6 {[%clk 0:00:01]} 35. b4 {[%clk 0:01:07]}  e5 {[%clk 0:00:01]} 36. b5 {[%clk 0:01:08]} 1-0


[Site "https://www.chess.com"]